bitfinex/quotes_BTCUSD_20241001
["timestamp","ask_amount","ask_price","bid_price","bid_amount"]
[1727770576554,0.564868,64073.0,64072.0,0.1569981]
[1727770576776,0.58933129,64073.0,64072.0,0.27483618]
[1727770577232,0.564868,64073.0,64072.0,0.27483618]
[1727770577688,0.566868,64073.0,64072.0,0.27483618]
[1727770578155,0.564868,64073.0,64072.0,0.27473608]
[1727770579073,0.566868,64073.0,64072.0,0.27473608]
[1727770581800,0.564868,64073.0,64072.0,0.27473608]
[1727770583236,0.569368,64073.0,64072.0,0.27473608]
[1727770585748,0.471668,64073.0,64072.0,0.27473608]
[1727770588495,0.49613118,64073.0,64072.0,0.27473608]
[1727770589313,0.471668,64073.0,64072.0,0.27473608]
[1727770590691,0.471668,64073.0,64072.0,0.45419388]
[1727770590941,0.471668,64073.0,64072.0,0.47038605]
[1727770591212,0.471668,64073.0,64072.0,0.57038605]
[1727770591435,0.471668,64073.0,64072.0,0.74458605]
[1727770591656,0.471668,64073.0,64072.0,0.76092607]
[1727770592355,0.471668,64073.0,64072.0,0.76090017]
[1727770592574,0.10165,64080.0,64079.0,0.44409508]
[1727770592803,0.10165,64080.0,64079.0,0.63974823]
[1727770593906,0.10265,64080.0,64079.0,0.63974823]
[1727770594115,0.10165,64080.0,64079.0,0.63974823]
[1727770594561,0.10265,64080.0,64079.0,0.63974823]
[1727770594783,0.10165,64080.0,64079.0,0.63974823]
[1727770595230,0.10365,64080.0,64079.0,0.64974823]
[1727770595655,0.10265,64080.0,64079.0,0.6396924]
[1727770596124,0.10365,64080.0,64079.0,0.6536924]
[1727770596566,0.10265,64080.0,64079.0,0.6536924]
[1727770596992,0.10365,64080.0,64079.0,0.6676924]
[1727770597455,0.10365,64080.0,64079.0,0.65155288]
[1727770597878,0.12810898,64080.0,64079.0,0.65155288]
[1727770598103,0.12810898,64080.0,64079.0,0.65165298]
[1727770599017,0.10365,64080.0,64079.0,0.65165298]
[1727770602488,0.10365,64080.0,64079.0,0.75165298]
[1727770603409,0.10365,64080.0,64079.0,0.6338149]
[1727770603661,0.10365,64080.0,64079.0,0.75165298]
[1727770607733,0.12810877,64080.0,64079.0,0.75165298]
[1727770609056,0.10365,64080.0,64079.0,0.75165298]
[1727770612174,0.10365,64080.0,64079.0,0.6338149]
[1727770613516,0.10365,64080.0,64079.0,0.6963419]
[1727770613754,0.12810889,64080.0,64079.0,0.6963419]
[1727770616466,0.12810889,64080.0,64079.0,0.71245161]
[1727770617137,0.10365,64080.0,64079.0,0.71245161]
[1727770619974,0.10365,64080.0,64079.0,0.72858266]
[1727770620212,0.10365,64080.0,64079.0,0.54227295]
[1727770621866,0.10365,64080.0,64079.0,0.5261419]
[1727770622139,0.10365,64080.0,64079.0,0.54226133]
[1727770624166,0.10365,64080.0,64079.0,0.54276133]
[1727770624897,0.10365,64080.0,64079.0,0.71436133]
[1727770629519,0.10365,64080.0,64079.0,0.54276133]
[1727770630458,0.10365,64080.0,64079.0,0.5266419]
[1727770633204,0.00175,64087.0,64086.0,0.27904]
[1727770633460,0.23677793,64088.0,64087.0,0.179037]
[1727770633693,0.23677793,64088.0,64087.0,0.3354948]
[1727770633928,0.0838,64094.0,64093.0,0.156023]
[1727770634659,0.10825673,64094.0,64093.0,0.156023]
[1727770635323,0.10925673,64094.0,64093.0,0.164023]
[1727770635987,0.11125673,64094.0,64093.0,0.164023]
[1727770636215,0.20235673,64094.0,64093.0,0.164023]
[1727770636670,0.1779,64094.0,64093.0,0.164023]
[1727770637352,0.1779,64094.0,64093.0,0.169023]
[1727770638481,0.24799583,64094.0,64093.0,0.169023]
[1727770638935,0.24813476,64094.0,64093.0,0.169023]
[1727770640484,0.24613476,64094.0,64093.0,0.169023]
[1727770641842,0.24813476,64094.0,64093.0,0.169023]
[1727770643183,0.29495794,64094.0,64093.0,0.169023]
[1727770643398,0.46608736,64094.0,64093.0,0.169023]
[1727770643616,0.46777024,64094.0,64093.0,0.169023]
[1727770646345,0.49222728,64094.0,64093.0,0.169023]
[1727770646800,0.46777024,64094.0,64093.0,0.169023]
[1727770649175,0.46577024,64094.0,64093.0,0.169023]
[1727770649654,0.49022721,64094.0,64093.0,0.169023]
[1727770651317,0.49222721,64094.0,64093.0,0.169023]
[1727770659108,0.46777024,64094.0,64093.0,0.169023]
[1727770661187,0.37667024,64094.0,64093.0,0.169023]
[1727770663027,0.37689278,64094.0,64093.0,0.169023]
[1727770663495,0.3769241,64094.0,64093.0,0.169023]
[1727770663972,0.25972592,64094.0,64093.0,0.169023]
[1727770667696,0.28403591,64094.0,64093.0,0.169023]
[1727770668439,0.25957887,64094.0,64093.0,0.169023]
[1727770670799,0.17977887,64094.0,64093.0,0.169023]
[1727770671037,0.17777887,64094.0,64093.0,0.169023]
[1727770671759,0.17977887,64094.0,64093.0,0.169023]
[1727770672475,0.17777887,64094.0,64093.0,0.169023]
[1727770672703,0.17977887,64094.0,64093.0,0.169023]
[1727770677326,0.17971673,64094.0,64093.0,0.169023]
[1727770678818,0.17771673,64094.0,64093.0,0.169023]
[1727770681305,0.29494368,64094.0,64093.0,0.169023]
[1727770681802,0.002648,64094.0,64093.0,0.52570101]
[1727770682062,0.002648,64094.0,64093.0,0.53886993]
[1727770682549,0.002648,64094.0,64093.0,0.53386993]
[1727770682782,0.001648,64094.0,64093.0,0.52586993]
[1727770683026,0.003648,64094.0,64093.0,0.54485394]
[1727770683258,0.002648,64094.0,64093.0,0.63885394]
[1727770683519,0.001648,64094.0,64093.0,0.62635394]
[1727770683743,0.001648,64094.0,64093.0,0.67323753]
[1727770683971,0.002648,64094.0,64093.0,0.64035394]
[1727770684199,0.002648,64094.0,64093.0,0.69729573]
[1727770684457,1e-06,64094.0,64093.0,0.64635394]
[1727770684708,0.001001,64094.0,64093.0,0.70711006]
[1727770684958,0.001648,64099.0,64093.0,0.70711006]
[1727770684959,0.001648,64099.0,64098.0,0.432511]
[1727770685173,0.001648,64099.0,64098.0,0.62824194]
[1727770686575,0.001648,64099.0,64098.0,0.64224194]
[1727770687225,0.001648,64099.0,64098.0,0.65624194]
[1727770687445,0.001648,64099.0,64098.0,0.65634204]
[1727770687663,0.001648,64099.0,64098.0,0.64234204]
[1727770688110,0.002648,64099.0,64098.0,0.65634204]
[1727770688340,0.002648,64099.0,64098.0,0.6260689]
[1727770688560,0.002648,64099.0,64098.0,0.6400689]
[1727770688809,0.003648,64099.0,64098.0,0.6400689]
[1727770689030,0.002648,64099.0,64098.0,0.6120689]
[1727770689264,0.003648,64099.0,64098.0,0.6400689]
[1727770689487,0.002648,64099.0,64098.0,0.6260689]
[1727770689956,0.002648,64099.0,64098.0,0.6120689]
[1727770690185,0.002648,64099.0,64098.0,0.6260689]
[1727770690872,0.002648,64099.0,64098.0,0.64072903]
[1727770691552,0.003648,64099.0,64098.0,0.65472903]
[1727770697723,0.02809783,64099.0,64098.0,0.65472903]
[1727770698381,0.003648,64099.0,64098.0,0.65472903]
[1727770701919,0.003648,64099.0,64098.0,0.66072903]
[1727770707688,0.02809524,64099.0,64098.0,0.66072903]
[1727770709183,0.003648,64099.0,64098.0,0.66072903]
[1727770716532,0.003648,64099.0,64098.0,0.71772357]
[1727770717739,0.02809519,64099.0,64098.0,0.71772357]
[1727770718465,0.003648,64099.0,64098.0,0.71772357]
[1727770720332,0.003648,64099.0,64098.0,0.73387355]
[1727770724286,0.003648,64099.0,64098.0,0.71772357]
[1727770725702,0.003648,64099.0,64098.0,0.76447546]
[1727770725952,0.003648,64099.0,64098.0,0.71772357]
[1727770727170,0.02809539,64099.0,64098.0,0.71772357]
[1727770727626,0.02809539,64099.0,64098.0,0.7878514]
[1727770728567,0.02809539,64099.0,64098.0,0.89408269]
[1727770729230,0.003648,64099.0,64098.0,0.91036877]
[1727770729449,0.003648,64099.0,64098.0,1.00387255]
[1727770731152,0.003648,64099.0,64098.0,0.91036877]
[1727770731927,0.003648,64099.0,64098.0,0.89408269]
[1727770732141,0.003648,64099.0,64098.0,0.91035022]
[1727770733653,0.003648,64099.0,64098.0,0.91033239]
[1727770734342,0.003648,64099.0,64098.0,0.89406486]
[1727770737819,0.0280955,64099.0,64098.0,0.89406486]
[1727770738457,0.003648,64099.0,64098.0,0.89405149]
[1727770740226,0.003648,64099.0,64098.0,0.91039894]
[1727770741229,0.003648,64099.0,64098.0,0.89405149]
[1727770741438,0.003648,64099.0,64098.0,0.91039873]
[1727770744731,0.003648,64099.0,64098.0,0.91042664]
[1727770747481,0.003648,64099.0,64098.0,0.82802664]
[1727770747705,0.02809537,64099.0,64098.0,0.69026651]
[1727770747925,0.02809537,64099.0,64098.0,0.48744442]
[1727770747926,0.11899537,64099.0,64098.0,0.48744442]
[1727770748150,0.11899537,64099.0,64098.0,0.45679214]
[1727770748586,0.20219537,64099.0,64098.0,0.45679214]
[1727770748796,0.20219537,64099.0,64098.0,0.44279214]
[1727770749046,0.175748,64099.0,64098.0,0.1561111]
[1727770749277,0.181248,64099.0,64098.0,0.1841111]
[1727770749723,0.25142887,64099.0,64098.0,0.1701111]
[1727770749994,0.25142887,64099.0,64098.0,0.1841111]
[1727770750217,0.25042887,64099.0,64098.0,0.1701111]
[1727770750447,0.22700399,64099.0,64098.0,0.1701111]
[1727770750665,0.180248,64099.0,64098.0,0.1701111]
[1727770750882,0.22700399,64099.0,64098.0,0.1701111]
[1727770751331,0.22699339,64099.0,64098.0,0.1701111]
[1727770751556,0.180248,64099.0,64098.0,0.1701111]
[1727770751766,0.181248,64099.0,64098.0,0.1671111]
[1727770751978,0.23399339,64099.0,64098.0,0.0111001]
[1727770752208,0.23599339,64099.0,64098.0,0.0351001]
[1727770752466,0.189248,64099.0,64098.0,0.0351001]
[1727770753143,0.189248,64099.0,64098.0,0.035]
[1727770754477,0.189248,64099.0,64098.0,0.03]
[1727770756236,0.21370068,64099.0,64098.0,0.03]
[1727770756465,0.189248,64099.0,64098.0,0.03]
[1727770756698,0.21370079,64099.0,64098.0,0.03]
[1727770758464,0.59917591,64099.0,64098.0,0.03]
[1727770758687,0.76537912,64099.0,64098.0,0.03]
[1727770758922,0.74092633,64099.0,64098.0,0.03]
[1727770759364,0.73992633,64099.0,64098.0,0.017]
[1727770759583,0.73992633,64099.0,64098.0,0.023]
[1727770759795,0.85450455,64099.0,64098.0,0.006]
[1727770760017,0.73792633,64099.0,64098.0,0.006]
[1727770760433,0.83114446,64099.0,64098.0,0.006]
[1727770760652,0.73732195,64099.0,64098.0,0.006]
[1727770760861,0.83054007,64099.0,64098.0,0.006]
[1727770761112,0.83254007,64099.0,64098.0,0.006]
[1727770761347,0.158018,64095.0,64094.0,0.000824]
[1727770761585,0.335818,64095.0,64094.0,0.000824]
[1727770762511,0.335818,64095.0,64094.0,0.005824]
[1727770762512,0.1798,64095.0,64094.0,0.005824]
[1727770762739,0.335818,64095.0,64094.0,0.007824]
[1727770764783,0.1798,64095.0,64094.0,0.007824]
[1727770765426,0.335818,64095.0,64094.0,0.007824]
[1727770766060,0.36027272,64095.0,64094.0,0.007824]
[1727770766271,0.20425472,64095.0,64094.0,0.007824]
[1727770767655,0.36027272,64095.0,64094.0,0.007824]
[1727770768120,0.20425472,64095.0,64094.0,0.007824]
[1727770769019,0.1798,64095.0,64094.0,0.007824]
[1727770773761,0.20425444,64095.0,64094.0,0.007824]
[1727770774253,0.20675444,64095.0,64094.0,0.163844]
[1727770774500,0.03295444,64095.0,64094.0,0.163844]
[1727770776154,0.20705444,64095.0,64094.0,0.007824]
[1727770776414,0.26740358,64095.0,64094.0,0.007824]
[1727770776631,0.42342158,64095.0,64094.0,0.007824]
[1727770777582,0.36307244,64095.0,64094.0,0.007824]
[1727770777809,0.36507244,64095.0,64094.0,0.007824]
[1727770778049,0.20905444,64095.0,64094.0,0.007824]
[1727770778502,0.1846,64095.0,64094.0,0.007824]
[1727770781204,0.340618,64095.0,64094.0,0.007824]
[1727770782208,0.340618,64095.0,64094.0,0.002824]
[1727770784071,0.340618,64095.0,64094.0,0.003648]
[1727770787227,0.36507285,64095.0,64094.0,0.003648]
[1727770787453,0.20905485,64095.0,64094.0,0.003648]
[1727770789276,0.1846,64095.0,64094.0,0.003648]
[1727770789490,0.23118622,64095.0,64094.0,0.003648]
[1727770790590,0.1846,64095.0,64094.0,0.003648]
[1727770791600,0.25447933,64095.0,64094.0,0.003648]
[1727770792539,0.27777244,64095.0,64094.0,0.003648]
[1727770792773,0.44231142,64095.0,64094.0,0.003648]
[1727770793718,0.46560453,64095.0,64094.0,0.003648]
[1727770793947,0.49005896,64095.0,64094.0,0.003648]
[1727770794176,0.46560453,64095.0,64094.0,0.003648]
[1727770794404,0.46587056,64095.0,64094.0,0.003648]
[1727770794656,0.34920932,64095.0,64094.0,0.003648]
[1727770796781,0.35085732,64095.0,64094.0,0.003648]
[1727770797971,0.37531162,64095.0,64094.0,0.003648]
[1727770802621,0.51572633,64095.0,64094.0,0.003648]
[1727770804719,0.37551432,64095.0,64094.0,0.003648]
[1727770806289,0.35106002,64095.0,64094.0,0.003648]
[1727770809656,0.50707802,64095.0,64094.0,0.003648]
[1727770810127,0.35106002,64095.0,64094.0,0.003648]
[1727770812839,0.37551754,64095.0,64094.0,0.003648]
[1727770816660,0.21070552,64095.0,64094.0,0.003648]
[1727770816900,0.37539008,64095.0,64094.0,0.003648]
[1727770817140,0.35093256,64095.0,64094.0,0.003648]
[1727770817591,0.25423256,64095.0,64094.0,0.003648]
[1727770820329,0.43470754,64095.0,64094.0,0.003648]
[1727770820574,0.27868954,64095.0,64094.0,0.003648]
[1727770821269,0.43470754,64095.0,64094.0,0.003648]
[1727770821504,0.43444268,64095.0,64094.0,0.003648]
[1727770821742,0.27842468,64095.0,64094.0,0.003648]
[1727770821972,0.29260547,64095.0,64094.0,0.003648]
[1727770822703,0.44862347,64095.0,64094.0,0.003648]
[1727770825386,0.42416649,64095.0,64094.0,0.003648]
[1727770826249,0.25974679,64095.0,64094.0,0.003648]
[1727770826500,0.42408881,64095.0,64094.0,0.003648]
[1727770828665,0.44854633,64095.0,64094.0,0.003648]
[1727770828871,0.42408881,64095.0,64094.0,0.003648]
[1727770831315,0.42403748,64095.0,64094.0,0.003648]
[1727770832190,0.44849517,64095.0,64094.0,0.003648]
[1727770833590,0.42403748,64095.0,64094.0,0.003648]
[1727770836809,0.44849523,64095.0,64094.0,0.003648]
[1727770838164,0.42403748,64095.0,64094.0,0.003648]
[1727770840881,0.42385153,64095.0,64094.0,0.003648]
[1727770841327,0.44830611,64095.0,64094.0,0.003648]
[1727770843430,0.60476391,64095.0,64094.0,0.003648]
[1727770843693,0.81686391,64095.0,64094.0,0.003648]
[1727770843942,0.81686391,64095.0,64094.0,0.00018927]
[1727770843943,0.79240933,64095.0,64094.0,0.00018927]
[1727770844466,1.26046933,64095.0,64094.0,0.00018927]
[1727770844692,1.48713674,64095.0,64094.0,0.00018927]
[1727770844906,1.49613674,64095.0,64094.0,0.00118927]
[1727770845130,1.50113674,64095.0,64094.0,0.00118927]
[1727770845362,1.52559428,64095.0,64094.0,0.00118927]
[1727770845602,1.29126891,64095.0,64094.0,0.00118927]
[1727770845818,1.68190801,64095.0,64094.0,0.00118927]
[1727770846299,1.67690801,64095.0,64094.0,0.00118927]
[1727770846543,1.52046123,64095.0,64094.0,0.00118927]
[1727770847946,1.52546123,64095.0,64094.0,0.00118927]
[1727770849075,1.50100369,64095.0,64094.0,0.00118927]
[1727770850506,1.49902254,64095.0,64094.0,0.00118927]
[1727770852605,1.52347995,64095.0,64094.0,0.00118927]
[1727770852841,1.67992673,64095.0,64094.0,0.00118927]
[1727770853766,1.67992673,64095.0,64094.0,6.997e-05]
[1727770855359,1.67993498,64095.0,64094.0,6.997e-05]
[1727770855805,1.5234882,64095.0,64094.0,6.997e-05]
[1727770856268,1.5234882,64095.0,64094.0,0.00089397]
[1727770857178,1.49903079,64095.0,64094.0,0.00089397]
[1727770858091,1.50103079,64095.0,64094.0,0.00089397]
[1727770858316,1.49903079,64095.0,64094.0,0.00089397]
[1727770858541,1.65547757,64095.0,64094.0,0.00089397]
[1727770859007,1.67847757,64095.0,64094.0,0.00089397]
[1727770859008,1.67847757,64095.0,64094.0,5.421e-05]
[1727770859009,1.68047757,64095.0,64094.0,5.421e-05]
[1727770859265,1.49903079,64095.0,64094.0,5.421e-05]
[1727770859980,1.52348939,64095.0,64094.0,5.421e-05]
[1727770862539,1.49903079,64095.0,64094.0,5.421e-05]
[1727770863428,1.49831919,64095.0,64094.0,5.421e-05]
[1727770863659,1.57694441,64095.0,64094.0,5.421e-05]
[1727770863908,1.49831919,64095.0,64094.0,3.27e-06]
[1727770865691,1.42567757,64095.0,64094.0,3.27e-06]
[1727770865920,1.34827757,64095.0,64094.0,3.27e-06]
[1727770866895,1.33327757,64095.0,64094.0,3.27e-06]
[1727770868038,1.33827757,64095.0,64094.0,3.27e-06]
[1727770868266,1.33957278,64095.0,64094.0,3.27e-06]
[1727770868500,1.65330526,64095.0,64094.0,3.27e-06]
[1727770868973,1.82720526,64095.0,64094.0,3.27e-06]
[1727770869232,1.67491956,64095.0,64094.0,3.27e-06]
[1727770873668,1.65046118,64095.0,64094.0,3.27e-06]
[1727770873912,1.65046118,64095.0,64089.0,0.00204]
[1727770873913,0.16653,64090.0,64089.0,0.00204]
[1727770874140,0.95323522,64090.0,64089.0,0.00204]
[1727770874359,1.18029761,64090.0,64089.0,0.00204]
[1727770874587,1.09305983,64090.0,64089.0,0.00204]
[1727770874800,1.0930603,64090.0,64089.0,0.00204]
[1727770875269,1.31990509,64090.0,64089.0,0.00204]
[1727770875507,1.32391332,64090.0,64089.0,0.00204]
[1727770876243,1.18408824,64090.0,64089.0,0.00204]
[1727770876683,1.20854631,64090.0,64089.0,0.00204]
[1727770877357,1.20867135,64090.0,64089.0,0.00204]
[1727770879929,1.20867135,64090.0,64089.0,0.002864]
[1727770883497,1.18421328,64090.0,64089.0,0.002864]
[1727770886738,1.34066006,64090.0,64089.0,0.002864]
[1727770887435,1.4982937,64090.0,64089.0,0.002864]
[1727770888177,1.34078329,64090.0,64089.0,0.002864]
[1727770888879,1.18433651,64090.0,64089.0,0.002864]
[1727770889601,1.18233651,64090.0,64089.0,0.002864]
[1727770890289,1.18433651,64090.0,64089.0,0.002864]
[1727770891277,1.20879519,64090.0,64089.0,0.002864]
[1727770894292,1.18433651,64090.0,64089.0,0.002864]
[1727770894506,1.321225,64090.0,64089.0,0.002864]
[1727770897330,1.34568386,64090.0,64089.0,0.002864]
[1727770897823,1.20879537,64090.0,64089.0,0.002864]
[1727770905383,0.81950666,64090.0,64089.0,0.002864]
[1727770905623,1.2080172,64090.0,64089.0,0.002864]
[1727770905991,0.98138605,64090.0,64089.0,0.002864]
[1727770906235,1.2080172,64090.0,64089.0,0.002864]
[1727770906698,1.18355834,64090.0,64089.0,0.002864]
[1727770908331,0.7950478,64090.0,64089.0,0.002864]
[1727770908549,0.95691501,64090.0,64089.0,0.002864]
[1727770908762,1.18352911,64090.0,64089.0,0.002864]
[1727770909653,1.20800101,64090.0,64089.0,0.002864]
[1727770913994,1.18354216,64090.0,64089.0,0.002864]
[1727770917153,1.20800118,64090.0,64089.0,0.002864]
[1727770917836,1.36444796,64090.0,64089.0,0.002864]
[1727770918291,1.20800118,64090.0,64089.0,0.00017403]
[1727770919205,1.18354216,64090.0,64089.0,0.00017403]
[1727770926140,1.28854216,64090.0,64089.0,0.00017403]
[1727770927349,1.29019016,64090.0,64089.0,0.00017403]
[1727770927565,1.44663694,64090.0,64089.0,0.00017403]
[1727770928222,0.264535,64088.0,64087.0,7.008e-05]
[1727770928435,1.05292545,64088.0,64087.0,7.008e-05]
[1727770928657,1.27954716,64088.0,64087.0,7.008e-05]
[1727770930484,1.27954716,64088.0,64087.0,0.00107008]
[1727770930743,1.31445204,64088.0,64087.0,0.00107008]
[1727770932184,1.33891215,64088.0,64087.0,0.00107008]
[1727770933104,1.33442573,64088.0,64087.0,0.00107008]
[1727770933766,1.30996562,64088.0,64087.0,0.00107008]
[1727770934205,1.27706074,64088.0,64087.0,0.00107008]
[1727770935085,1.29186965,64088.0,64087.0,0.00107008]
[1727770935976,1.40996793,64088.0,64087.0,0.00107008]
[1727770936229,1.43442771,64088.0,64087.0,0.00107008]
[1727770938325,1.31632943,64088.0,64087.0,0.00107008]
[1727770938560,1.43442771,64088.0,64087.0,0.00107008]
[1727770940149,1.43442771,64088.0,64087.0,7.432e-05]
[1727770945688,1.40996793,64088.0,64087.0,7.432e-05]
[1727770947352,1.40610759,64088.0,64087.0,7.432e-05]
[1727770948482,1.43056732,64088.0,64087.0,7.432e-05]
[1727770949667,1.40610759,64088.0,64087.0,7.432e-05]
[1727770952171,1.40617879,64088.0,64087.0,7.432e-05]
[1727770952627,1.43063846,64088.0,64087.0,0.00089832]
[1727770954663,1.58708524,64088.0,64087.0,0.00089832]
[1727770955104,1.43063846,64088.0,64087.0,0.00089832]
[1727770956970,1.31054018,64088.0,64087.0,0.00089832]
[1727770957190,1.31254018,64088.0,64087.0,0.09969832]
[1727770959010,1.28808051,64088.0,64087.0,0.09969832]
[1727770960872,1.31253978,64088.0,64087.0,0.09969832]
[1727770962283,1.43063806,64088.0,64087.0,0.09969832]
[1727770962707,1.58806467,64088.0,64087.0,0.09969832]
[1727770964076,1.58971267,64088.0,64087.0,0.09969832]
[1727770965236,1.5652534,64088.0,64087.0,0.09969832]
[1727770966338,1.5652534,64088.0,64087.0,0.00089832]
[1727770966789,1.45503341,64088.0,64087.0,0.00089832]
[1727770967239,1.54593341,64088.0,64087.0,0.00089832]
[1727770968107,1.47949358,64088.0,64087.0,0.00089832]
[1727770968628,1.47655654,64088.0,64087.0,0.00089832]
[1727770968836,1.45209637,64088.0,64087.0,0.00089832]
[1727770969523,1.6938743,64088.0,64087.0,0.00089832]
[1727770969774,1.64299637,64088.0,64087.0,0.00089832]
[1727770970001,1.64299637,64088.0,64087.0,8.156e-05]
[1727770970429,1.8725749,64088.0,64087.0,8.156e-05]
[1727770970641,1.8935749,64088.0,64087.0,8.156e-05]
[1727770971067,1.67299637,64088.0,64087.0,0.00108156]
[1727770971293,1.66999637,64088.0,64087.0,8.156e-05]
[1727770971517,1.80742737,64088.0,64087.0,8.156e-05]
[1727770971727,1.82142737,64088.0,64087.0,0.00108156]
[1727770972204,1.83989054,64088.0,64087.0,0.00108156]
[1727770972683,1.85089054,64088.0,64087.0,0.00208156]
[1727770973139,2.23840237,64088.0,64087.0,0.00208156]
[1727770974504,2.23840237,64088.0,64084.0,0.00187]
[1727770974505,0.0275,64085.0,64084.0,0.00187]
[1727770974741,1.38025881,64085.0,64084.0,0.00187]
[1727770974967,1.60033984,64085.0,64084.0,0.00187]
[1727770975666,0.380454,64080.0,64079.0,0.00209]
[1727770975902,1.53671759,64080.0,64079.0,0.00209]
[1727770976129,1.98179707,64080.0,64079.0,0.00209]
[1727770976385,5.10099791,64080.0,64079.0,0.00209]
[1727770976598,5.19603849,64080.0,64079.0,0.00209]
[1727770976808,0.183569,64074.0,64073.0,0.0009241]
[1727770977044,1.35233723,64074.0,64073.0,0.0009241]
[1727770977263,1.35233723,64074.0,64058.0,0.33497793]
[1727770977264,0.281571,64073.0,64058.0,0.33497793]
[1727770977482,1.27893396,64073.0,64058.0,0.33497793]
[1727770977945,1.27893396,64073.0,64072.0,8.164e-05]
[1727770978178,1.28093396,64073.0,64072.0,8.164e-05]
[1727770978624,1.45138074,64073.0,64072.0,8.164e-05]
[1727770978851,1.29293396,64073.0,64072.0,8.164e-05]
[1727770979549,1.30773855,64073.0,64072.0,8.164e-05]
[1727770980217,1.31973855,64073.0,64072.0,8.164e-05]
[1727770980451,1.32173855,64073.0,64072.0,8.164e-05]
[1727770980671,1.48214113,64073.0,64072.0,8.164e-05]
[1727770981795,1.48014113,64073.0,64072.0,8.164e-05]
[1727770983570,1.48214113,64073.0,64072.0,8.164e-05]
[1727770984475,1.50514113,64073.0,64072.0,8.164e-05]
[1727770984704,1.52760879,64073.0,64072.0,8.164e-05]
[1727770985347,1.52960879,64073.0,64072.0,8.164e-05]
[1727770986013,1.52960879,64073.0,64072.0,7.04e-06]
[1727770986467,1.68647836,64073.0,64072.0,7.04e-06]
[1727770988529,1.52960879,64073.0,64072.0,7.04e-06]
[1727770990039,1.60960879,64073.0,64072.0,7.04e-06]
[1727770990884,1.59560879,64073.0,64072.0,7.04e-06]
[1727770991305,1.59760879,64073.0,64072.0,7.04e-06]
[1727770991766,1.61160879,64073.0,64072.0,7.04e-06]
[1727770992659,1.59760879,64073.0,64072.0,7.04e-06]
[1727770993090,1.61160879,64073.0,64072.0,7.04e-06]
[1727770993965,0.271586,64067.0,64058.0,0.0982]
[1727770994243,1.0531042,64067.0,64058.0,0.0982]
[1727770994456,1.17120248,64067.0,64065.0,0.0928]
[1727770995166,1.19066964,64067.0,64065.0,0.0928]
[1727770995401,1.21266964,64067.0,64065.0,0.0928]
[1727770998888,1.36911642,64067.0,64065.0,0.0928]
[1727771002263,1.36911642,64067.0,64059.0,0.0782]
[1727771002490,1.36911642,64067.0,64061.0,0.095525]
[1727771003190,1.34464926,64067.0,64061.0,0.095525]
[1727771003418,1.34397194,64067.0,64061.0,0.095525]
[1727771005713,1.18752516,64067.0,64061.0,0.095525]
[1727771005990,1.21199242,64067.0,64061.0,0.095525]
[1727771007850,1.21699242,64067.0,64061.0,0.095525]
[1727771008305,1.21707515,64067.0,64061.0,0.095525]
[1727771009478,1.35651606,64067.0,64061.0,0.095525]
[1727771010362,1.43622079,64067.0,64061.0,0.095525]
[1727771011956,1.59266757,64067.0,64061.0,0.001225]
[1727771014300,1.74953859,64067.0,64061.0,0.001225]
[1727771014996,1.72507133,64067.0,64061.0,0.001225]
[1727771015441,1.41175353,64067.0,64061.0,0.001225]
[1727771015900,1.41175353,64067.0,64064.0,0.09]
[1727771017829,1.43622059,64067.0,64064.0,0.09]
[1727771023908,1.41175353,64067.0,64064.0,0.09]
[1727771026948,1.43622015,64067.0,64064.0,0.09]
[1727771028590,1.0606687,64067.0,64064.0,0.09]
[1727771029257,1.03620208,64067.0,64064.0,0.09]
[1727771029955,1.03620208,64067.0,64061.0,0.001225]
[1727771030145,1.03620208,64067.0,64061.0,0.098025]
[1727771030960,1.03420208,64067.0,64061.0,0.098025]
[1727771031152,1.19073774,64067.0,64061.0,0.098025]
[1727771031554,1.19273774,64067.0,64061.0,0.098025]
[1727771031956,1.30357135,64067.0,64061.0,0.098025]
[1727771032156,1.32803821,64067.0,64061.0,0.098025]
[1727771032367,1.54718814,64067.0,64061.0,0.098025]
[1727771032724,1.39065248,64067.0,64061.0,0.098025]
[1727771033343,1.36618562,64067.0,64061.0,0.098025]
[1727771033563,1.14703569,64067.0,64061.0,0.098025]
[1727771036242,1.17150246,64067.0,64061.0,0.098025]
[1727771036453,1.06066885,64067.0,64061.0,0.098025]
[1727771038412,0.94257057,64067.0,64061.0,0.177425]
[1727771038662,1.06066885,64067.0,64061.0,0.177425]
[1727771043021,1.05566885,64067.0,64061.0,0.177425]
[1727771044111,1.03120208,64067.0,64061.0,0.177425]
[1727771046178,1.43111676,64067.0,64061.0,0.177425]
[1727771047055,1.45558343,64067.0,64061.0,0.177425]
[1727771047272,1.4322466,64067.0,64061.0,0.177425]
[1727771049301,1.40777993,64067.0,64061.0,0.177425]
[1727771050391,1.40777993,64067.0,64061.0,0.098025]
[1727771052255,1.43224667,64067.0,64061.0,0.098025]
[1727771055962,1.40777993,64067.0,64061.0,0.098025]
[1727771056218,1.43224672,64067.0,64061.0,0.098025]
[1727771058259,1.44224672,64067.0,64061.0,0.098025]
[1727771059207,1.41777993,64067.0,64061.0,0.098025]
[1727771059433,1.44224664,64067.0,64061.0,0.098025]
[1727771062348,1.37948857,64067.0,64066.0,0.094124]
[1727771062559,1.37948857,64067.0,64066.0,0.177024]
[1727771062560,0.82979827,64067.0,64066.0,0.177024]
[1727771062809,0.68993415,64067.0,64066.0,0.18832987]
[1727771063023,0.97801124,64067.0,64066.0,0.18832987]
[1727771063247,1.17639359,64067.0,64066.0,0.177024]
[1727771063493,1.18339359,64067.0,64066.0,0.177024]
[1727771063717,1.19239359,64067.0,64066.0,0.177024]
[1727771063948,1.18739359,64067.0,64066.0,0.177024]
[1727771065050,1.17839359,64067.0,64066.0,0.177024]
[1727771065264,1.18039359,64067.0,64066.0,0.177024]
[1727771065896,1.20485857,64067.0,64066.0,0.177024]
[1727771069285,1.18039359,64067.0,64066.0,0.177024]
[1727771069782,0.96001124,64067.0,64066.0,0.177024]
[1727771072306,0.98447632,64067.0,64066.0,0.177024]
[1727771072738,1.20485867,64067.0,64066.0,0.177024]
[1727771076098,0.96001124,64067.0,64066.0,0.177024]
[1727771078406,0.80392524,64067.0,64066.0,0.177024]
[1727771078651,0.96001124,64067.0,64066.0,0.094124]
[1727771078865,0.98447624,64067.0,64066.0,0.094124]
[1727771079286,0.96001124,64067.0,64066.0,0.094124]
[1727771079499,0.98447629,64067.0,64066.0,0.094124]
[1727771081410,1.19996904,64067.0,64066.0,0.094124]
[1727771081649,1.19996904,64067.0,64066.0,0.000824]
[1727771081880,0.98447629,64067.0,64066.0,0.000824]